Workbook

Sheet уч.план сквозн. в ИРО
A1: 2. Учебный план
A2: Индекс | B2: Наименование циклов, дисциплин, профессиональных модулей, МДК, практик | C2: Формы промежуточной аттестации | D2: Учебная нагрузка обучающихся (час.) | L2: Распределение обязательной аудиторной нагрузки по курсам и семестрам (час. в семестр)
D3: Объем образовательной нагрузки | E3: самостоятельная учебная работа | F3: в т.ч по учебным дисциплинам и МДК | I3: практическая подготовка | J3: Пром.аттестация | L3: I курс | N3: II курс | P3: III курс | R3: IV курс
F4: всего занятий | G4: в т.ч. лаб.и практ. занятий | H4: Курсовых работ (проектов) | J4: консультации | K4: экзамены | L4: 1 сем. 17 нед. | M4: 2 сем. 22 нед. | N4: 3 сем. 17 нед. | O4: 4 сем. 23 нед. | P4: 5 сем. 16 нед. | Q4: 6 сем. 24 нед. | R4: 7 сем. 16 нед. | S4: 8 сем. 13 нед.
A5: 1 | B5: 2 | C5: 3 | D5: 4 | E5: 5 | F5: 6 | G5: 7 | H5: 8 | I5: 9 | J5: 10 | K5: 11 | L5: 12 | M5: 13 | N5: 14 | O5: 15 | P5: 16 | Q5: 17 | R5: 18 | S5: 19
A6: ОД.00 | B6: Общеобразовательный учебный цикл | C6: -/10/4 | D6: =SUM(D7:D21) -> 1404 | E6: =SUM(E7:E21) -> 0 | F6: 1310 | G6: 544 | H6: 0 | I6: 0 | J6: 48 | K6: 36 | L6: 612 | M6: 792 | N6: 0 | O6: 0 | P6: 0 | Q6: 0 | R6: 0 | S6: 0
A7: ОУД.01 | B7: Русский язык | C7: -, Э | D7: 72 | E7: 0 | F7: 54 | G7: 18 | H7: 0 | I7: 0 | J7: 12 | K7: 6 | L7: 34 | M7: 38 | N7: 0 | O7: 0 | P7: 0 | Q7: 0 | R7: 0 | S7: 0
A8: ОУД.02 | B8: Литература | C8: -, ДЗ | D8: 108 | E8: 0 | F8: 108 | G8: 14 | H8: 0 | I8: 0 | J8: 0 | K8: 0 | L8: 50 | M8: 58 | N8: 0 | O8: 0 | P8: 0 | Q8: 0 | R8: 0 | S8: 0
A9: ОУД.03 | B9: Иностранный язык | C9: -, ДЗ | D9: 72 | E9: 0 | F9: 72 | G9: 72 | H9: 0 | I9: 0 | J9: 0 | K9: 0 | L9: 32 | M9: 40 | N9: 0 | O9: 0 | P9: 0 | Q9: 0 | R9: 0 | S9: 0
A10: ОУД.04 | B10: Математика | C10: ДЗ, Э | D10: 320 | E10: 0 | F10: 302 | G10: 82 | H10: 0 | I10: 0 | J10: 12 | K10: 6 | L10: 170 | M10: 150 | N10: 0 | O10: 0 | P10: 0 | Q10: 0 | R10: 0 | S10: 0
A11: ОУД.05 | B11: История* | C11: -, ДЗ | D11: 116 | E11: 0 | F11: 116 | G11: 116 | H11: 0 | I11: 0 | J11: 0 | K11: 0 | L11: 64 | M11: 52 | N11: 0 | O11: 0 | P11: 0 | Q11: 0 | R11: 0 | S11: 0
A12: ОУД.06 | B12: Физическая культура | C12: З, ДЗ | D12: 72 | E12: 0 | F12: 72 | G12: 60 | H12: 0 | I12: 0 | J12: 0 | K12: 0 | L12: 36 | M12: 36 | N12: 0 | O12: 0 | P12: 0 | Q12: 0 | R12: 0 | S12: 0
A13: ОУД.07 | B13: Основы безопасности жизнедеятельности | C13: -, ДЗ | D13: 68 | E13: 0 | F13: 68 | G13: 48 | H13: 0 | I13: 0 | J13: 0 | K13: 0 | L13: 34 | M13: 34 | N13: 0 | O13: 0 | P13: 0 | Q13: 0 | R13: 0 | S13: 0
A14: ОУД.08 | B14: Информатика | C14: -, Э | D14: 108 | E14: 0 | F14: 96 | G14: 32 | H14: 0 | I14: 0 | J14: 6 | K14: 6 | L14: 54 | M14: 54 | N14: 0 | O14: 0 | P14: 0 | Q14: 0 | R14: 0 | S14: 0
A15: ОУД.09 | B15: Физика | C15: ДЗ, Э | D15: 108 | E15: 0 | F15: 96 | G15: 32 | H15: 0 | I15: 0 | J15: 6 | K15: 6 | L15: 68 | M15: 40 | N15: 0 | O15: 0 | P15: 0 | Q15: 0 | R15: 0 | S15: 0
A16: ОУД.10 | B16: Обществознание | C16: -, ДЗ | D16: 72 | E16: 0 | F16: 72 | G16: 0 | H16: 0 | I16: 0 | J16: 0 | K16: 0 | L16: 0 | M16: 72 | N16: 0 | O16: 0 | P16: 0 | Q16: 0 | R16: 0 | S16: 0
A17: ОУД.11 | B17: Биология | C17: -,Э | D17: 72 | E17: 0 | F17: 60 | G17: 30 | H17: 0 | I17: 0 | J17: 6 | K17: 6 | L17: 0 | M17: 72 | N17: 0 | O17: 0 | P17: 0 | Q17: 0 | R17: 0 | S17: 0
A18: ОУД 12 | B18: Химия | C18: -, ДЗ | D18: 72 | E18: 0 | F18: 72 | G18: 28 | H18: 0 | I18: 0 | J18: 0 | K18: 0 | L18: 44 | M18: 28 | N18: 0 | O18: 0 | P18: 0 | Q18: 0 | R18: 0 | S18: 0
A19: ОУД.13 | B19: География | C19: -,Э | D19: 72 | E19: 0 | F19: 60 | G19: 0 | H19: 0 | I19: 0 | J19: 6 | K19: 6 | L19: 0 | M19: 72 | N19: 0 | O19: 0 | P19: 0 | Q19: 0 | R19: 0 | S19: 0
A20: ОУД.14 | B20: Родной язык | C20: -, Э | D20: 62 | E20: 0 | F20: 62 | G20: 12 | H20: 0 | I20: 0 | J20: 0 | K20: 0 | L20: 26 | M20: 36 | N20: 0 | O20: 0 | P20: 0 | Q20: 0 | R20: 0 | S20: 0
B21: Индивидуальный проект* | C21: -, ДЗ | D21: 10 | E21: 0 | F21: 0 | G21: 0 | H21: 0 | I21: 0 | J21: 0 | K21: 0 | L21: 0 | M21: 10 | N21: 0 | O21: 0 | P21: 0 | Q21: 0 | R21: 0 | S21: 0
A22: СГЦ.00 | B22: Социально-гуманитарный цикл | C22: -/4/- | D22: =D23+D24+D25+D26+D27 -> 470 | E22: =E23+E24+E25+E26+E27 -> 20 | F22: 450 | G22: 362 | H22: 0 | I22: 0 | J22: 0 | K22: 0 | L22: 0 | M22: 0 | N22: 96 | O22: 154 | P22: 40 | Q22: 64 | R22: 72 | S22: 44
A23: СГЦ.01 | B23: История России | C23: ДЗ | D23: 46 | E23: 4 | F23: 42 | G23: 8 | H23: 0 | I23: 0 | J23: 0 | K23: 0 | L23: 0 | M23: 0 | N23: 0 | O23: 46 | P23: 0 | Q23: 0 | R23: 0 | S23: 0
A24: СГЦ.02 | B24: Иностранный язык в профессиональной деятельности | C24: -, -, -, -, ДЗ | D24: 160 | E24: 4 | F24: 158 | G24: 158 | H24: 0 | I24: 0 | J24: 0 | K24: 0 | L24: 0 | M24: 0 | N24: 32 | O24: 36 | P24: 20 | Q24: 32 | R24: 18 | S24: 22
A25: СГЦ.03 | B25: Физическая культура | C25: -, -, -, -, ДЗ | D25: 160 | E25: 4 | F25: 154 | G25: 152 | H25: 0 | I25: 0 | J25: 0 | K25: 0 | L25: 0 | M25: 0 | N25: 32 | O25: 36 | P25: 20 | Q25: 32 | R25: 18 | S25: 22
A26: СГЦ.04 | B26: Безопасность жизнедеятельности | C26: ДЗ | D26: 68 | E26: 4 | F26: 64 | G26: 35 | H26: 0 | I26: 0 | J26: 0 | K26: 0 | L26: 0 | M26: 0 | N26: 32 | O26: 36 | P26: 0 | Q26: 0 | R26: 0 | S26: 0
A27: СГЦ.05 | B27: Основы финансовой грамотности | C27: -, ДЗ | D27: 36 | E27: 4 | F27: 32 | G27: 9 | H27: 0 | I27: 0 | J27: 0 | K27: 0 | L27: 0 | M27: 0 | N27: 0 | O27: 0 | P27: 0 | Q27: 0 | R27: 36 | S27: 0
A28: П.00 | B28: Общепрофессиональный и профессиональный циклы | C28: -/24/12 | D28: =SUM(D29,D44) -> 3454 | E28: =SUM(E29,E44) -> 228 | F28: =SUM(F29,F44) -> 2998 | G28: 832 | H28: 60 | I28: 0 | J28: 90 | K28: 60 | L28: 0 | M28: 0 | N28: 480 | O28: 674 | P28: 588 | Q28: 872 | R28: 504 | S28: 388
A29: ОП.00 | B29: Общепрофессиональный цикл | C29: -/14/3 | D29: =SUM(D30:D43) -> 862 | E29: =SUM(E30:E43) -> 28 | F29: =SUM(F30:F43) -> 762 | G29: 300 | H29: 0 | I29: 0 | J29: 60 | K29: 30 | L29: 0 | M29: 0 | N29: 300 | O29: 328 | P29: 0 | Q29: 234 | R29: 0 | S29: 0
A30: ОП.01. | B30: Математические методы решения прикладных профессиональных задач | C30: ДЗ | D30: 68 | E30: 2 | F30: 66 | G30: 40 | H30: 0 | I30: 0 | J30: 0 | K30: 0 | L30: 0 | M30: 0 | N30: 22 | O30: 46 | P30: 0 | Q30: 0 | R30: 0 | S30: 0
A31: ОП.02. | B31: Экологические основы природопользования | C31: ДЗ | D31: 40 | E31: 2 | F31: 38 | G31: 16 | H31: 0 | I31: 0 | J31: 0 | K31: 0 | L31: 0 | M31: 0 | N31: 0 | O31: 0 | P31: 0 | Q31: 40 | R31: 0 | S31: 0
A32: ОП.03. | B32: Информационные основы профессиональной деятельности | C32: ДЗ | D32: 36 | E32: 2 | F32: 34 | G32: 10 | H32: 0 | I32: 0 | J32: 0 | K32: 0 | L32: 0 | M32: 0 | N32: 0 | O32: 0 | P32: 0 | Q32: 36 | R32: 0 | S32: 0
A33: ОП.04. | B33: Инженерная графика | C33: Э | D33: 100 | E33: 2 | F33: 80 | G33: 80 | H33: 0 | I33: 0 | J33: 12 | K33: 6 | L33: 0 | M33: 0 | N33: 32 | O33: 68 | P33: 0 | Q33: 0 | R33: 0 | S33: 0
A34: ОП.05. | B34: Техническая механика | C34: ДЗ | D34: 112 | E34: 2 | F34: 110 | G34: 48 | H34: 0 | I34: 0 | J34: 0 | K34: 0 | L34: 0 | M34: 0 | N34: 48 | O34: 64 | P34: 0 | Q34: 0 | R34: 0 | S34: 0
A35: ОП.06. | B35: Материаловедение | C35: Э | D35: 72 | E35: 2 | F35: 52 | G35: 20 | H35: 0 | I35: 0 | J35: 12 | K35: 6 | L35: 0 | M35: 0 | N35: 72 | O35: 0 | P35: 0 | Q35: 0 | R35: 0 | S35: 0
A36: ОП.07. | B36: Электротехника и электронная техника | C36: -,ДЗ | D36: 50 | E36: 2 | F36: 48 | G36: 20 | H36: 0 | I36: 0 | J36: 0 | K36: 0 | L36: 0 | M36: 0 | N36: 50 | O36: 0 | P36: 0 | Q36: 0 | R36: 0 | S36: 0
A37: ОП.08. | B37: Основы гидравлики и теплотехники | C37: -, ДЗ | D37: 42 | E37: 2 | F37: 40 | G37: 16 | H37: 0 | I37: 0 | J37: 0 | K37: 0 | L37: 0 | M37: 0 | N37: 0 | O37: 42 | P37: 0 | Q37: 0 | R37: 0 | S37: 0
A38: ОП.09. | B38: Основы агрономии | C38: Э | D38: 76 | E38: 2 | F38: 56 | G38: 8 | H38: 0 | I38: 0 | J38: 12 | K38: 6 | L38: 0 | M38: 0 | N38: 76 | O38: 0 | P38: 0 | Q38: 0 | R38: 0 | S38: 0
A39: ОП.10. | B39: Основы зоотехнии | C39: Э | D39: 72 | E39: 2 | F39: 52 | G39: 10 | H39: 0 | J39: 12 | K39: 6 | M39: 0 | N39: 0 | O39: 72 | P39: 0 | Q39: 0 | R39: 0 | S39: 0
A40: ОП.11. | B40: Основы взаимозаменяемости и технические измерения | C40: -, Э | D40: 36 | E40: 2 | F40: 34 | G40: 4 | H40: 0 | I40: 0 | J40: 0 | K40: 0 | L40: 0 | M40: 0 | N40: 0 | O40: 36 | P40: 0 | Q40: 0 | R40: 0 | S40: 0
A41: ОП.12. | B41: Основы экономики, менеджмента и маркетинга | C41: Э | D41: 76 | E41: 2 | F41: 74 | G41: 4 | H41: 0 | I41: 0 | J41: 12 | K41: 6 | L41: 0 | M41: 0 | N41: 0 | O41: 0 | P41: 0 | Q41: 76 | R41: 0 | S41: 0
A42: ОП.13. | B42: Правовые основы профессиональной деятельности | C42: ДЗ | D42: 36 | E42: 2 | F42: 34 | G42: 4 | H42: 0 | I42: 0 | J42: 0 | K42: 0 | L42: 0 | M42: 0 | N42: 0 | O42: 0 | P42: 0 | Q42: 36 | R42: 0 | S42: 0
A43: ОП.14. | B43: Метрология, стандартизация и подтверждение качества | C43: ДЗ | D43: 46 | E43: 2 | F43: 44 | G43: 20 | H43: 0 | I43: 0 | J43: 0 | K43: 0 | L43: 0 | M43: 0 | N43: 0 | O43: 0 | P43: 0 | Q43: 46 | R43: 0 | S43: 0
A44: ПМ.00 | B44: Профессиональные модули | C44: -/10/9 | D44: =SUM(D45,D53,D59) -> 2592 | E44: =SUM(E45,E53,E59) -> 200 | F44: 2236 | G44: 532 | H44: 60 | I44: 0 | J44: 30 | K44: 30 | L44: 0 | M44: 0 | N44: 180 | O44: 346 | P44: 588 | Q44: 638 | R44: 504 | S44: 388
A45: ПМ.01 | B45: Эксплуатация сельскохозяйственной техники и оборудования | C45: -/2/2 | D45: =SUM(D46:D52) -> 992 | E45: =SUM(E46:E52) -> 65 | F45: 915 | G45: 274 | H45: 20 | I45: 0 | J45: 18 | K45: 18 | L45: 0 | M45: 0 | N45: 180 | O45: 346 | P45: 466 | Q45: 0 | R45: 0 | S45: 0
A46: МДК.01.01 | B46: Назначение и общее устройство тракторов, автомобилей и сельскохозяйственных машин | C46: -, Э | D46: 72 | E46: 15 | F46: 57 | G46: 40 | H46: 0 | I46: 0 | J46: 6 | K46: 6 | L46: 0 | M46: 0 | N46: 72 | O46: 0 | P46: 0 | Q46: 0 | R46: 0 | S46: 0
A47: МДК.01.02 | B47: Подготовка тракторов и сельскохозяйственных машин и механизмов к работе | C47: Э | D47: 130 | E47: 15 | F47: 115 | G47: 57 | H47: 0 | I47: 0 | J47: 6 | K47: 6 | L47: 0 | M47: 0 | N47: 72 | O47: 58 | P47: 0 | Q47: 0 | R47: 0 | S47: 0
A48: МДК.01.03 | B48: Комплектование машинно- тракторного агрегата для выполнения сельскохозяйственных работ | C48: Э | D48: 212 | E48: 15 | F48: 185 | G48: 83 | H48: 20 | I48: 0 | J48: 6 | K48: 6 | L48: 0 | M48: 0 | N48: 0 | O48: 144 | P48: 68 | Q48: 0 | R48: 0 | S48: 0
A49: МДК.01.04 | B49: Технологии механизированных работ в растениеводстве | C49: Э | D49: 110 | E49: 10 | F49: 100 | G49: 50 | H49: 0 | I49: 0 | J49: 0 | K49: 0 | L49: 0 | M49: 0 | N49: 0 | O49: 0 | P49: 110 | Q49: 0 | R49: 0 | S49: 0
A50: МДК,01.05 | B50: Технологии механизированных работ в животноводстве | C50: Э | D50: 144 | E50: 10 | F50: 134 | G50: 44 | H50: 0 | I50: 0 | J50: 0 | K50: 0 | L50: 0 | M50: 0 | N50: 0 | O50: 0 | P50: 144 | Q50: 0 | R50: 0 | S50: 0
A51: УП.01 | B51: Учебная практика | C51: -, ДЗ | D51: 180 | E51: 0 | F51: 180 | G51: 0 | H51: 0 | I51: 0 | J51: 0 | K51: 0 | L51: 0 | M51: 0 | N51: 36 | O51: 72 | P51: 72 | Q51: 0 | R51: 0 | S51: 0
A52: ПП 01 | B52: Производственная практика | D52: 144 | E52: 0 | F52: 144 | G52: 0 | H52: 0 | I52: 0 | J52: 0 | K52: 0 | L52: 0 | M52: 0 | N52: 0 | O52: 72 | P52: 72 | Q52: 0 | R52: 0 | S52: 0
A53: ПМ.02 | B53: Ремонт сельскохозяйственной техники и оборудования | C53: -/3/2 | D53: =SUM(D54:D58) -> 994 | E53: =SUM(E54:E58) -> 81 | F53: 877 | G53: 208 | H53: 40 | I53: 0 | J53: 12 | K53: 12 | L53: 0 | M53: 0 | N53: 0 | O53: 0 | P53: 0 | Q53: 154 | R53: 504 | S53: 388
A54: МДК.02.01 | B54: Система технического обслуживания и ремонта сельскохозяйственных машин и механизмов | C54: Э | D54: 210 | E54: 20 | F54: 190 | G54: 60 | H54: 20 | I54: 0 | J54: 6 | K54: 6 | L54: 0 | M54: 0 | N54: 0 | O54: 0 | P54: 0 | Q54: 60 | R54: 92 | S54: 58
A55: МДК.02.02 | B55: Технологические процессы ремонтного производства | C55: Э | D55: 182 | E55: 35 | F55: 147 | G55: 120 | H55: 20 | I55: 0 | J55: 6 | K55: 6 | L55: 0 | M55: 0 | N55: 0 | O55: 0 | P55: 0 | Q55: 94 | R55: 140 | S55: 0
A56: МДК.02.03 | B56: Управление структурным подразделением организации (предприятия) | C56: Э | D56: 98 | E56: 26 | F56: 72 | G56: 28 | H56: 0 | I56: 0 | J56: 0 | K56: 0 | L56: 0 | M56: 0 | N56: 0 | O56: 0 | P56: 0 | Q56: 0 | R56: 20 | S56: 78
A57: УП.02 | B57: Учебная практика | C57: -, ДЗ | D57: 216 | E57: 0 | F57: 216 | G57: 0 | H57: 0 | I57: 0 | J57: 0 | K57: 0 | L57: 0 | M57: 0 | N57: 0 | O57: 0 | P57: 0 | Q57: 0 | R57: 108 | S57: 108
A58: ПП.02 | B58: Производственная практика | D58: 288 | E58: 0 | F58: 252 | G58: 0 | H58: 0 | I58: 0 | J58: 0 | K58: 0 | L58: 0 | M58: 0 | N58: 0 | O58: 0 | P58: 0 | Q58: 0 | R58: 144 | S58: 144
A59: ПМ.03. | B59: Выполнение работ по одной или нескольким профессиям рабочих, должностям служащих | C59: -/3/1 | D59: =SUM(D60:D63) -> 606 | E59: =SUM(E60:E63) -> 54 | F59: 444 | G59: 50 | H59: 0 | I59: 0 | J59: 0 | K59: 0 | L59: 0 | M59: 0 | N59: 0 | O59: 0 | P59: 122 | Q59: 484 | R59: 0 | S59: 0
A60: МДК. 05.01 | B60: Теоретическая подготовка по профессии рабочих 19205 Тракторист - машинист сельскохозяйственного производства | C60: ДЗ | D60: 112 | E60: 24 | F60: 88 | G60: 10 | H60: 0 | I60: 0 | J60: 0 | K60: 0 | L60: 0 | M60: 0 | N60: 0 | O60: 0 | P60: 36 | Q60: 76 | R60: 0 | S60: 0
A61: МДК.05.02 | B61: Теоретическая подготовка по профессии рабочих 11442 Водитель автомобиля | C61: -, Э | D61: 170 | E61: 30 | F61: 140 | G61: 40 | H61: 0 | I61: 0 | J61: 0 | K61: 0 | L61: 0 | M61: 0 | N61: 0 | O61: 0 | P61: 86 | Q61: 84 | R61: 0 | S61: 0
A62: УП.05 | B62: Учебная практика | C62: ДЗ | D62: 144 | E62: 0 | F62: 108 | G62: 0 | H62: 0 | I62: 0 | J62: 0 | K62: 0 | L62: 0 | M62: 0 | N62: 0 | O62: 0 | P62: 0 | Q62: 144 | R62: 0 | S62: 0
A63: ПП.05 | B63: Производственная практика | D63: 180 | E63: 0 | F63: 108 | G63: 0 | H63: 0 | I63: 0 | J63: 0 | K63: 0 | L63: 0 | M63: 0 | N63: 0 | O63: 0 | P63: 0 | Q63: 180 | R63: 0 | S63: 0
B64: ПА | D64: =SUM(L64:S64) -> 252 | E64: 0 | F64: 0 | G64: 0 | H64: 0 | I64: 0 | J64: 0 | K64: 0 | L64: 0 | M64: 72 | N64: 36 | O64: 36 | P64: 0 | Q64: 36 | R64: 36 | S64: 36
B65: Всего | C65: -/40/16 | D65: =SUM(D6,D22,D28,D64) -> 5580 | E65: =E6+E22+E28 -> 248 | F65: =F6+F22+F28 -> 4758 | G65: 1738 | H65: =H6+H22+H28 -> 60 | I65: 0 | J65: 0 | K65: 0 | L65: =L6+L22+L28+L64 -> 612 | M65: =M6+M22+M28+M64 -> 864 | N65: 612 | O65: 864 | P65: 0 | Q65: 0 | R65: 612 | S65: 468
A66: ПДП | B66: Преддипломная практика | D66: 144 | S66: 4нед.
A67: ГИА | B67: Государственная итоговая аттестация | D67: 216 | S67: 6нед.
B68: Итого | D68: =SUM(D65,D66,D67) -> 5940
A69: Консультации на учебную группу по 4 часа на 1 студента в год. | F69: Всего | G69: дисциплин и | L69: 612 | M69: 792 | N69: 612 | O69: 612 | P69: 432 | Q69: 504 | R69: 432 | S69: 288
A70: Государственная итоговая атестация | G70: МДК
A71: 1. Программа базовой подготовки | G71: учебной | L71: 0 | M71: 0 | N71: 36 | O71: =O51 -> 72 | P71: 72 | Q71: =Q51+Q57+Q62 -> 144 | R71: 108 | S71: 108
A72: 1.1. Дипломный проект (работа) | G72: практики
A73: Выполнение дипломного проекта (работы) с 18.05 по 14.06 | G73: производств. | L73: 0 | M73: 0 | N73: 0 | O73: =O52 -> 72 | P73: 72 | Q73: =Q52+Q58+Q63 -> 180 | R73: 144 | S73: 144
A74: (всего 4 нед.) | G74: практики
A75: Защита дипломного проекта (работы) с 15.06 по 28.06 | G75: преддиплом практики | L75: 0 | M75: 0 | N75: 0 | O75: 0 | P75: 0 | Q75: 0 | R75: 0 | S75: 144
A76: (всего 2 нед.) | G76: экзаменов | L76: 0 | M76: 7 | N76: 3 | O76: 2 | P76: 2 | Q76: 3 | R76: 2 | S76: 3
A77: 1.2. Государственные экзамены - | G77: дифф. зачетов | L77: 0 | M77: 8 | N77: 1 | O77: 9 | P77: 0 | Q77: 10 | R77: 3 | S77: 7
G78: зачетов | L78: 1 | M78: 0 | N78: 0 | O78: 0 | P78: 0 | Q78: 0 | R78: 0 | S78: 0

Sheet Базис+Вариатив
A1: 2. План учебного процесса
A2: Индекс | B2: Наименование циклов, дисциплин, профессиональных модулей, МДК, практик | C2: Формы промежуточной аттестации | D2: Учебная нагрузка обучающихся (час.)
D3: максимальная | E3: самостоятельная учебная работа | F3: Обязательная аудиторная
F4: всего занятий | G4: базисные часы | H4: Вариативка
A5: 1 | B5: 2 | C5: 3 | D5: 4 | E5: 5 | F5: 6 | G5: 7 | H5: 8
A6: ОД.00 | B6: Общеобразовательный цикл | C6: -/10/4 | D6: =D7+D19+D23 -> 2106 | E6: =E7+E19+E23 -> 702 | F6: 1404 | G6: 1404 | H6: 0
B7: Базовые учебные дисциплины | C7: -/9/1 | D7: =SUM(D8:D18) -> 1365 | E7: =SUM(E8:E18) -> 455 | F7: 910 | G7: 910 | H7: 0
A8: ОУД.01 | B8: Русский язык | C8: Э | D8: 117 | E8: 39 | F8: 78 | G8: 78 | H8: =F8-G8 -> 0
B9: Русская литература | C9: ДЗ | D9: 176 | E9: 59 | F9: 117 | G9: 117 | H9: =F9-G9 -> 0
A10: ОУД.02 | B10: Иностранный язык | C10: -, ДЗ | D10: 176 | E10: 59 | F10: 117 | G10: 117 | H10: 0
A11: ОУД.04 | B11: История | C11: -, ДЗ | D11: 175 | E11: 58 | F11: 117 | G11: 117 | H11: 0
A12: ОУД.05 | B12: Физическая культура | C12: З, ДЗ | D12: 175 | E12: 58 | F12: 117 | G12: 117 | H12: 0
A13: ОУД.06 | B13: Основы безопасности жизнедеятельности | C13: ДЗ | D13: 105 | E13: 35 | F13: 70 | G13: 70 | H13: 0
A14: ОУД.09 | B14: Химия | C14: ДЗ | D14: 117 | E14: 39 | F14: 78 | G14: 78 | H14: 0
A15: ОУД.10 | B15: Обществознание ( вкл. экономику и право) | C15: -,ДЗ | D15: 162 | E15: 54 | F15: 108 | G15: 108 | H15: 0
A16: ОУД.15 | B16: Биология | C16: ДЗ | D16: 54 | E16: 18 | F16: 36 | G16: 36 | H16: 0
A17: ОУД.16 | B17: География | C17: ДЗ | D17: 54 | E17: 18 | F17: 36 | G17: 36 | H17: 0
A18: ОУД.17 | B18: Экология | C18: ДЗ | D18: 54 | E18: 18 | F18: 36 | G18: 36 | H18: 0
B19: Профильные учебные дисциплины | C19: - /0/3 | D19: =D20+D21+D22 -> 683 | E19: =E20+E21+E22 -> 228 | F19: 455 | G19: 455 | H19: 0
A20: ОУД.03 | B20: Математика: алгебра, начала математического анализа, геометрия) | C20: -,Э | D20: 351 | E20: 117 | F20: 234 | G20: 234 | H20: 0
A21: ОУД.07 | B21: Информатика | C21: -,Э | D21: 150 | E21: 50 | F21: 100 | G21: 100 | H21: 0
A22: ОУД.08 | B22: Физика | C22: Э | D22: 182 | E22: 61 | F22: 121 | G22: 121 | H22: 0
B23: Дополнительные учебные дисциплины | C23: -/1/- | D23: 58 | E23: 19 | F23: 39 | G23: 39 | H23: 0
A24: УД.01 | B24: Введение в специальность / Модернизация сельскохозяйственной техники в Республике Татарстан | C24: ДЗ | D24: 58 | E24: 19 | F24: 39 | G24: 39 | H24: 0
A25: ОГСЭ.00 | B25: Общий гуманитарный и социально-экономический цикл | C25: -/4/- | D25: =D26+D27+D28+D29+D30 -> 741 | E25: =E26+E27+E28+E29+E30 -> 247 | F25: 494 | G25: 416 | H25: 78
A26: ОГСЭ.01 | B26: Основы философии | C26: ДЗ | D26: 60 | E26: 12 | F26: 48 | G26: 48 | H26: 0
A27: ОГСЭ.02 | B27: История | C27: ДЗ | D27: 60 | E27: 12 | F27: 48 | G27: 48 | H27: 0
A28: ОГСЭ.03 | B28: Иностранный язык | C28: -, -, -, -, ДЗ | D28: 184 | E28: 24 | F28: 160 | G28: 160 | H28: 0
A29: ОГСЭ.04 | B29: Физическая культура | C29: З,З, З,З,З,ДЗ | D29: 320 | E29: =D29-F29 -> 160 | F29: 160 | G29: 160 | H29: 0
A30: ОГСЭ.05 | B30: Татарский язык | C30: -, ДЗ | D30: 117 | E30: =D30-F30 -> 39 | F30: 78 | G30: 0 | H30: 78
A31: ЕН.00 | B31: Математический и общий естественнонаучный цикл | C31: -/2/ - | D31: =D32+D33 -> 108 | E31: =E32+E33 -> 36 | F31: 72 | G31: 72 | H31: 0
A32: ЕН.01 | B32: Математика | C32: ДЗ | D32: 60 | E32: 20 | F32: 40 | G32: 40 | H32: 0
A33: ЕН.02 | B33: Экологические основы природопользования | C33: ДЗ | D33: 48 | E33: 16 | F33: 32 | G33: 32 | H33: 0
A34: П.00 | B34: Профессиональный цикл | C34: -/24/11 | D34: =D35+D53 -> 3471 | E34: =E35+E53 -> 1157 | F34: 3358 | G34: 2572 | H34: =H35+H53 -> 786
A35: ОП.00 | B35: Общепрофессиональные дисциплины | C35: -/13/3 | D35: =SUM(D36:D52) -> 1284 | E35: =SUM(E36:E52) -> 428 | F35: 856 | G35: 664 | H35: =SUM(H36:H52) -> 192
A36: ОП.01. | B36: Инженерная графика | C36: -, ДЗ | D36: 95 | E36: =D36-F36 -> 31 | F36: 64 | G36: 64 | H36: 0
A37: ОП.02. | B37: Техническая механика | C37: -, Э | D37: 117 | E37: =D37-F37 -> 39 | F37: 78 | G37: 78 | H37: 0
A38: ОП.03. | B38: Материаловедение | C38: -, ДЗ | D38: 76 | E38: 26 | F38: 50 | G38: 50 | H38: 0
A39: ОП.04. | B39: Электротехника и электронная техника | C39: -,ДЗ | D39: 93 | E39: 31 | F39: 62 | G39: 62 | H39: 0
A40: ОП.05. | B40: Основы гидравлики и теплотехники | C40: -, ДЗ | D40: 96 | E40: 32 | F40: 64 | G40: 64 | H40: 0
A41: ОП.06. | B41: Основы агрономии | C41: ДЗ | D41: 48 | E41: 16 | F41: 32 | G41: 32 | H41: 0
A42: ОП.07. | B42: Основы зоотехнии | C42: ДЗ | D42: 48 | E42: 16 | F42: 32 | G42: 32 | H42: 0
A43: ОП.08. | B43: Информационные технологии в профессиональной деятельности | C43: -, ДЗ | D43: 87 | E43: 29 | F43: 58 | G43: 58 | H43: 0
A44: ОП.09. | B44: Метрология, стандартизация и подтверждение качества | C44: ДЗ | D44: 69 | E44: 23 | F44: 46 | G44: 46 | H44: 0
A45: ОП.10. | B45: Основы экономики, менеджмента и маркетинга | C45: ДЗ | D45: 48 | E45: 16 | F45: 32 | G45: 32 | H45: 0
A46: ОП.11. | B46: Правовые основы профессиональной деятельности | C46: ДЗ | D46: 48 | E46: 16 | F46: 32 | G46: 32 | H46: 0
A47: ОП.12. | B47: Охрана труда | C47: Э | D47: 69 | E47: 23 | F47: 46 | G47: 46 | H47: 0
A48: ОП.13. | B48: Безопасность жизедеятельности | D48: 102 | E48: 34 | F48: 68 | G48: 68 | H48: 0
A49: ОП.14. | B49: Топливо и смазочные материалы | C49: Э | D49: 72 | E49: 24 | F49: 48 | G49: 0 | H49: 48
A50: ОП.15. | B50: Детали машин и основы конструирования | C50: ДЗ | D50: 72 | E50: 24 | F50: 48 | G50: 0 | H50: 48
A51: ОП.16. | B51: Компьютерная инженерная графика | C51: ДЗ | D51: 72 | E51: 24 | F51: 48 | G51: 0 | H51: 48
A52: ОП.17. | B52: Экономика и организация производства | C52: ДЗ | D52: 72 | E52: 24 | F52: 48 | G52: 0 | H52: 48
A53: ПМ.00 | B53: Профессиональные модули | C53: -/11/8 | D53: =D54+D59+D65+D70+D74 -> 2187 | E53: =E54+E59+E65+E70+E74 -> 729 | F53: =F54+F59+F65+F70+F74 -> 2502 | G53: =G54+G59+G65+G70+G74 -> 1908 | H53: =H54+H59+H65+H70+H74 -> 594
A54: ПМ.01 | B54: Подготовка машин, механизмов, установок, приспособлений к работе, комплектования сборочных единиц | C54: -/2/2 | D54: =SUM(D55:D58) -> 975 | E54: =SUM(E55:E58) -> 325 | F54: 1082 | G54: 822 | H54: =SUM(H55:H58) -> 260
A55: МДК.01.01 | B55: Назначение и общее устройство тракторов, автомобилей и сельскохозяйственных машин | C55: -, Э | D55: =E55+F55 -> 795 | E55: =F55/2 -> 265 | F55: 530 | G55: 310 | H55: 220
A56: МДК.01.02 | B56: Подготовка тракторов и сельскохозяйственных машин и механизмов к работе | C56: -, ДЗ | D56: =E56+F56 -> 180 | E56: =F56/2 -> 60 | F56: 120 | G56: 80 | H56: 40
A57: УП.01 | B57: Учебная практика | C57: -, ДЗ | D57: 0 | E57: 0 | F57: 252 | G57: 252 | H57: 0
A58: ПП 01 | B58: Производственная практика | D58: 0 | E58: 0 | F58: 180 | G58: 180 | H58: 0
A59: ПМ.02 | B59: Эксплуатация сельскохозяйственной техники | C59: -/2/2 | D59: =SUM(D60:D64) -> 414 | E59: =SUM(E60:E64) -> 138 | F59: 492 | G59: 392 | H59: 100
A60: МДК.02.01 | B60: Комплектование машинно-тракторного агрегата для выполнения сельскохозяйственных работ | C60: Э | D60: =E60+F60 -> 108 | E60: 36 | F60: 72 | G60: 68 | H60: 4
A61: МДК.02.02 | B61: Технологии механизированных работ в растениеводстве | C61: -, ДЗ | D61: =E61+F61 -> 204 | E61: 68 | F61: 136 | G61: 76 | H61: 60
A62: МДК.02.03 | B62: Технологии механизированных работ в животноводстве | D62: =E62+F62 -> 102 | E62: 34 | F62: 68 | G62: 32 | H62: 36
A63: УП.02 | B63: Учебная практика | C63: -, ДЗ | D63: 0 | E63: 0 | F63: 108 | G63: 108 | H63: 0
A64: ПП.02 | B64: Производственная практика | D64: 0 | E64: 0 | F64: 108 | G64: 108 | H64: 0
A65: ПМ.03 | B65: Техническое обслуживание и диагностирование неисправностей сельскохозяйственных машин и механизмов; ремонт отдельных деталей и узлов | C65: -/2/2 | D65: =SUM(D66:D69) -> 297 | E65: =SUM(E66:E69) -> 99 | F65: 450 | G65: 392 | H65: 58
A66: МДК.03.01 | B66: Система технического обслуживания и ремонта сельскохозяйственных машин и механизмов | C66: Э | D66: =E66+F66 -> 177 | E66: 59 | F66: 118 | G66: 60 | H66: 58
A67: МДК.03.02 | B67: Технологические процессы ремонтного производства | C67: ДЗ | D67: 120 | E67: 40 | F67: 80 | G67: 80 | H67: 0
A68: УП.03 | B68: Учебная практика | C68: -, ДЗ | D68: 0 | E68: 0 | F68: 144 | G68: 144 | H68: 0
A69: ПП.03 | B69: Производственная практика | D69: 0 | E69: 0 | F69: 108 | G69: 108 | H69: 0
A70: ПМ.04 | B70: Управление работами машинно-тракторного парка сельскохозяйственного предприятия | C70: -/2/1 | D70: =SUM(D71:D73) -> 120 | E70: =SUM(E71:E73) -> 40 | F70: =SUM(F71:F73) -> 152 | G70: =SUM(G71:G73) -> 152 | H70: =SUM(H71:H73) -> 0
A71: МДК.04.01 | B71: Управление структурным подразделением организации (предприятия) | C71: ДЗ | D71: 120 | E71: 40 | F71: 80 | G71: 80 | H71: 0
A72: УП.04 | B72: Учебная практика | C72: ДЗ | D72: 0 | E72: 0 | F72: 36 | G72: 36 | H72: =F72-G72 -> 0
A73: ПП.04 | B73: Производственная практика | D73: 0 | E73: 0 | F73: 36 | G73: 36 | H73: 0
A74: ПМ.05. | B74: Выполнение работ по профессиям: Тракторист-машинист сельскохозяйственного производства; Водитель категории С | C74: -/3/1 | D74: =SUM(D75:D78) -> 381 | E74: =SUM(E75:E78) -> 127 | F74: 326 | G74: 150 | H74: 176
A75: МДК. 05.01 | B75: Теоретическая подготовка по профессии тракторист - машинист сельскохозяйственного производства | C75: ДЗ | D75: 72 | E75: 24 | F75: 48 | G75: 0 | H75: =F75-G75 -> 48
A76: МДК.05.02 | B76: Теоретическая подготовка по профессии Водитель транспортных средств категории С | C76: -, ДЗ | D76: 309 | E76: 103 | F76: 206 | G76: 78 | H76: 128
A77: УП.05 | B77: Учебная практика | C77: ДЗ | D77: 0 | E77: 0 | F77: 36 | G77: 36 | H77: 0
A78: ПП.05 | B78: Производственная практика | D78: 0 | E78: 0 | F78: 36 | G78: 36 | H78: 0
B79: Всего | C79: -/40/15 | D79: =D6+D25+D31+D34 -> 6426 | E79: =E6+E25+E31+E34 -> 2142 | F79: =F6+F25+F31+F34 -> 5328 | G79: =G6+G25+G31+G34 -> 4464 | H79: =H6+H25+H31+H34 -> 864
A80: ПДП | B80: Преддипломная практика
A81: ГИА | B81: Государственная итоговая аттестация
A82: Консультации на учебную группу по 4 часа на 1 студента в год. | F82: Всего | G82: дисциплин и
A83: Государственная (итоговая) атестация | G83: МДК
A84: 1. Программа базовой подготовки | G84: учебной
A85: 1.1. Дипломный проект (работа) | G85: практики
A86: Выполнение дипломного проекта (работы) с 18.05 по 14.06 | G86: производств.
A87: (всего 4 нед.) | G87: практики
A88: Защита дипломного проекта (работы) с 15.06 по 28.06 | G88: преддиплом практики
A89: (всего 2 нед.) | G89: экзаменов
A90: 1.2. Государственные экзамены - | G90: дифф. зачетов
G91: зачетов
